fUSD/lending_fUSD_20250614
["ID","MTS","AMOUNT","RATE_DAILY","PERIOD"]
[365788654,1749914748181,-461.5,0.000168,2]
[365788655,1749914748208,-797.31,0.000168,2]
[365788656,1749914748235,-797.31,0.000168,2]
[365788657,1749914748261,-918.24,0.000168,2]
[365788658,1749914748287,-1021.0,0.000168,2]
[365788659,1749914748316,-5734.15871476,0.00016802,2]
[365788660,1749914748347,-640.0,0.00016808,2]
[365788661,1749914748374,-168.0,0.00016809,2]
[365788662,1749914748400,-151.0,0.00016825,2]
[365788663,1749914748427,-5268.05810671,0.00016827,2]
[365788664,1749914749717,-466.10060805,0.00016827,2]
[365788665,1749914749742,-5734.15871476,0.00016851,2]
[365788666,1749914749767,-2000.0,0.00016864,2]
[365788667,1749914749790,-200.0,0.00016864,2]
[365788668,1749914749814,-5734.15871476,0.00016876,2]
[365788669,1749914749838,-158.40630172,0.00016876,2]
[365788670,1749914749862,-326.84,0.00016877,2]
[365788671,1749914749885,-1164.33,0.00016877,2]
[365788672,1749914749908,-151.0,0.0001688,2]
[365788673,1749914749930,-200.0,0.00016899,2]
[365788674,1749914749952,-150.0,0.00016899,2]
[365788675,1749914749975,-150.0,0.00016899,2]
[365788676,1749914749998,-500.0,0.00016899,2]
[365788677,1749914750021,-500.0,0.00016899,2]
[365788678,1749914750044,-150.0,0.00016899,2]
[365788679,1749914750066,-150.0,0.00016899,2]
[365788680,1749914750088,-150.0,0.00016899,2]
[365788681,1749914750111,-150.0,0.00016899,2]
[365788682,1749914750133,-500.0,0.00016899,2]
[365788683,1749914750156,-150.0,0.00016899,2]
[365788684,1749914750180,-150.0,0.00016899,2]
[365788685,1749914750204,-150.0,0.00016899,2]
[365788686,1749914750228,-150.0,0.00016899,2]
[365788687,1749914750252,-1000.0,0.000169,2]
[365788688,1749914750276,-922.87,0.000169,2]
[365788689,1749914750301,-1000.0,0.000169,2]
[365788690,1749914750325,-461.5,0.000169,2]
[365788691,1749914750350,-1000.0,0.000169,2]
[365788692,1749914750373,-170.78,0.000169,2]
[365788693,1749914750398,-460.33,0.000169,2]
[365788694,1749914750423,-150.0,0.000169,2]
[365788695,1749914750446,-150.0,0.000169,2]
[365788696,1749914750469,-150.0,0.000169,2]
[365788697,1749914750494,-150.0,0.000169,2]
[365788698,1749914750518,-500.0,0.000169,2]
[365788699,1749914750541,-150.0,0.000169,2]
[365788700,1749914750565,-150.0,0.000169,2]
[365788701,1749914750589,-150.0,0.000169,2]
[365788702,1749914750613,-5734.15871476,0.000169,2]
[365788703,1749914750637,-1000.0,0.000169,2]
[365788704,1749914750661,-964.6273015,0.000169,2]
[365788705,1749914750684,-1000.0,0.000169,2]
[365788706,1749914750707,-5146.63177013,0.000169,2]
[365788707,1749914750729,-171.55152656,0.000169,2]
[365788708,1749914750752,-201.33957346,0.000169,2]
[365788709,1749914750776,-0.86844097,0.00016926,2]
[365788710,1749914750824,-149.13155903,0.00016926,2]
[365788711,1749914750847,-150.0,0.00016926,2]
[365788712,1749914750872,-500.0,0.00016926,2]
[365788713,1749914750896,-500.0,0.00016926,2]
[365788714,1749914750921,-150.0,0.00016926,2]
[365788715,1749914750945,-150.0,0.00016926,2]
[365788716,1749914750968,-500.0,0.00016926,2]
[365788717,1749914750991,-200.0,0.00016926,2]
[365788718,1749914751014,-150.0,0.00016926,2]
[365788719,1749914751038,-200.0,0.00016927,2]
[365788720,1749914751061,-150.0,0.00016927,2]
[365788721,1749914751085,-150.0,0.00016927,2]
[365788722,1749914751107,-150.0,0.00016927,2]
[365788723,1749914751130,-500.0,0.00016927,2]
[365788724,1749914751152,-200.0,0.00016927,2]
[365788725,1749914751175,-200.0,0.00016927,2]
[365788726,1749914751198,-150.0,0.00016954,2]
[365788727,1749914751222,-150.0,0.00016954,2]
[365788728,1749914751245,-500.0,0.00016954,2]
[365788729,1749914751269,-350.52207526,0.00016954,2]
[365788730,1749914751292,-200.0,0.00016954,2]
[365788731,1749914751316,-150.0,0.00016954,2]
[365788732,1749914751341,-500.0,0.00016954,2]
[365788733,1749914751364,-250.0,0.00016954,2]
[365788734,1749914751389,-150.0,0.00016955,2]
[365788735,1749914751413,-150.0,0.00016955,2]
[365788736,1749914751438,-150.0,0.00016955,2]
[365788737,1749914751463,-300.0,0.00016955,2]
[365788738,1749914751487,-502.52909233,0.00016973,2]
[365788739,1749914751510,-500.0,0.00016973,2]
[365788740,1749914751533,-500.0,0.00016973,2]
[365788741,1749914751556,-500.0,0.00016973,2]
[365788742,1749914751582,-500.0,0.00016973,2]
[365788743,1749914751607,-500.0,0.00016973,2]
[365788744,1749914751632,-500.0,0.00016973,2]
[365788745,1749914751656,-500.0,0.00016973,2]
[365788746,1749914751679,-500.0,0.00016973,2]
[365788747,1749914751702,-500.0,0.00016973,2]
[365788748,1749914751725,-162.23932081,0.00016973,2]
[365788749,1749914751748,-500.7608794,0.00016973,2]
[365788750,1749914751771,-500.0,0.00016973,2]
[365788751,1749914751794,-500.0,0.00016973,2]
[365788752,1749914751818,-500.0,0.00016973,2]
[365788753,1749914751842,-500.0,0.00016973,2]
[365788754,1749914751866,-500.0,0.00016973,2]
[365788755,1749914751891,-320.24218226,0.00016973,2]
[365788756,1749914751914,-500.51049021,0.00016973,2]
[365788757,1749914751938,-500.0,0.00016973,2]
[365788758,1749914751962,-500.0,0.00016973,2]
[365788759,1749914751984,-194.45300217,0.00016973,2]
[365788760,1749914752008,-250.0,0.00016981,2]
[365788761,1749914752033,-250.0,0.00016981,2]
[365788762,1749914752058,-500.0,0.00016981,2]
[365788763,1749914752082,-150.0,0.00016981,2]
[365788764,1749914752105,-500.0,0.00016981,2]
[365788765,1749914752129,-150.0,0.00016982,2]
[365788766,1749914752152,-150.0,0.00016982,2]
[365788767,1749914752177,-150.0,0.00016982,2]
[365788768,1749914752204,-500.0,0.00016986,2]
[365788769,1749914752244,-500.0,0.00016986,2]
[365788770,1749914752641,-500.0,0.00016986,2]
[365788771,1749914752668,-500.0,0.00016986,2]
[365788772,1749914752693,-500.0,0.00016986,2]
[365788773,1749914752719,-319.41012254,0.00016986,2]
[365788774,1749914752744,-176.34,0.00016994,2]
[365788775,1749914752768,-300.0,0.00016994,2]
[365788776,1749914752793,-17343.51294266,0.00016995,2]
[365788777,1749914752838,-39919.65166667,0.00016995,2]
[365788778,1749914752874,-39919.65166667,0.00016995,2]
[365788779,1749914752912,-39919.65166667,0.00016995,2]
[365788780,1749914752952,-39919.65166667,0.00016995,2]
[365788781,1749914752989,-39919.65166667,0.00016995,2]
[365788782,1749914753034,-18656.26652421,0.00016995,2]
[365788783,1749914753059,-777.08908473,0.00016995,2]
[365788784,1749914753083,-300.0,0.00016996,2]
[365788785,1749914753109,-300.0,0.00016996,2]
[365788786,1749914753134,-5326.87283276,0.00016997,2]
[365788787,1749914753159,-12379.2207042,0.00016997,2]
[365788788,1749914753185,-2180.20252077,0.00016997,2]
[365788789,1749914753223,-365.02839523,0.00016997,2]
[365788790,1749914753252,-39042.5494642,0.00016997,2]
[365788791,1749914753278,-512.07380724,0.00016997,2]
[365788792,1749914753318,-2741.52287526,0.00016997,2]
[365788793,1749914753345,-9544.6569674,0.00016997,2]
[365788794,1749914753371,-383.7862282,0.00016997,2]
[365788795,1749914753399,-300.0,0.00016997,2]
[365788796,1749914753431,-26949.68559581,0.00016998,2]
[365788797,1749914753466,-39919.65166667,0.00016998,2]
[365788798,1749914753503,-39919.65166667,0.00016998,2]
[365788799,1749914753541,-39919.65166667,0.00016998,2]
[365788800,1749914753686,-39919.65166667,0.00016998,2]
[365788801,1749914753728,-39919.65166667,0.00016998,2]
[365788802,1749914753832,-39919.65166667,0.00016998,2]
[365788803,1749914753865,-39919.65166667,0.00016998,2]
[365788804,1749914753924,-39919.65166667,0.00016998,2]
[365788805,1749914753962,-39919.65166667,0.00016998,2]
[365788806,1749914754004,-39919.65166667,0.00016998,2]
[365788807,1749914754047,-39919.65166667,0.00016998,2]
[365788808,1749914754084,-39919.65166667,0.00016998,2]
[365788809,1749914754119,-39919.65166667,0.00016998,2]
[365788810,1749914754153,-39919.65166667,0.00016998,2]
[365788811,1749914754189,-39919.65166667,0.00016998,2]
[365788812,1749914754225,-39919.65166667,0.00016998,2]
[365788813,1749914754262,-39919.65166667,0.00016998,2]
[365788814,1749914754297,-39919.65166667,0.00016998,2]
[365788815,1749914754341,-39919.65166667,0.00016998,2]
[365788816,1749914754379,-39919.65166667,0.00016998,2]
[365788817,1749914754421,-39919.65166667,0.00016998,2]
[365788818,1749914754458,-39919.65166667,0.00016998,2]
[365788819,1749914755250,3740.10555808,6.94e-05,2]
[365788820,1749914755275,8817.33327855,6.94e-05,2]
[365788821,1749914795253,168.0,0.00014778,2]
[365788823,1749914830665,1014.66672145,0.00015,2]
[365788824,1749914830688,243.47997709,0.00015,2]
[365788825,1749914834158,3158.57792628,0.00015,2]
[365788826,1749914861579,993.99,0.00015932,2]
[365788828,1749914867019,600.0,0.00015068,2]
[365788829,1749914867864,150.0,0.00015068,2]
[365788830,1749914892461,200.0,0.00015376,2]
[365788831,1749914903023,1878.72034926,0.0001,2]
[365788832,1749914904831,206.057506,7.888e-05,2]
[365788833,1749914908894,200.0,0.00015858,7]
[365788834,1749914917879,260.94855639,0.000107,2]
[365788835,1749914921553,201.00002,0.00015376,2]
[365788836,1749914921972,1907.22566498,0.00013368,2]
[365788837,1749914921994,10000.0,0.00013368,2]
[365788838,1749914922017,10000.0,0.00013368,2]
[365788839,1749914922039,8902.45820124,0.00013368,2]
[365788840,1749914927166,159.35,0.00015843,2]
[365788841,1749914927356,159.35,0.00015882,2]
[365788842,1749914927638,159.35,0.00015922,2]
[365788845,1749914949926,619.49179876,0.00015831,2]
[365788846,1749914949949,10000.0,0.00015831,2]
[365788847,1749914949972,10000.0,0.00015831,2]
[365788848,1749914949995,3280.50820124,0.00015831,2]
[365788890,1749914989908,6251.57138343,0.00016,2]
[365788891,1749914990598,200.0,0.00015831,2]
[365788892,1749915007765,267.92041533,0.000158,2]
[365788893,1749915007787,10000.0,0.000158,2]
[365788894,1749915007811,10000.0,0.000158,2]
[365788895,1749915007834,10000.0,0.000158,2]
[365788896,1749915007857,10000.0,0.000158,2]
[365788897,1749915007880,10000.0,0.000158,2]
[365788898,1749915007903,9607.82958467,0.000158,2]
[365788899,1749915009061,227.0,0.00015017,2]
[365788900,1749915011632,165.17041533,0.00015568,2]
[365788901,1749915011656,61.82958467,0.00015568,2]
[365788902,1749915016794,227.0,0.00015119,2]
[365788909,1749915031678,-482.69164039,0.00016164,2]
[365788910,1749915031691,-17.30835961,0.00016164,2]
[365788911,1749915031700,-302.05,0.0001618,2]
[365788912,1749915031710,-305.08,0.0001618,2]
[365788913,1749915031720,-201.0,0.00016217,2]
[365788914,1749915031730,-227.0,0.00016246,2]
[365788915,1749915031740,-166.36,0.0001636,2]
[365788916,1749915031749,-300.21,0.0001639,2]
[365788917,1749915031758,-500.0,0.000164,5]
[365788918,1749915031768,-301.51,0.00016403,2]
[365788919,1749915031777,-300.22,0.00016422,2]
[365788920,1749915031787,-305.95,0.00016422,2]
[365788921,1749915031797,-600.0,0.00016438,2]
[365788922,1749915031806,-227.0,0.00016442,2]
[365788923,1749915031816,-1000.0,0.000165,6]
[365788924,1749915031825,-227.0,0.00016572,2]
[365788925,1749915031835,-1500.0,0.000166,6]
[365788926,1749915031844,-392.0,0.00016659,2]
[365788927,1749915031854,-201.0,0.00016673,2]
[365788928,1749915031863,-1200.0,0.00016678,2]
[365788929,1749915031873,-300.0,0.00016679,2]
[365788930,1749915031883,-1001.6974,0.0001668,2]
[365788931,1749915031892,-1062.1067,0.0001668,2]
[365788932,1749915031902,-536.2078,0.0001668,2]
[365788934,1749915031911,-860.68140023,0.00016698,2]
[365788936,1749915031921,-2100.0,0.000167,6]
[365788937,1749915031930,-860.68140023,0.0001672,2]
[365788938,1749915031939,-860.68140023,0.00016743,2]
[365788939,1749915031949,-860.68140023,0.00016765,2]
[365788940,1749915031959,-500.0,0.00016773,2]
[365788941,1749915031968,-860.68140023,0.00016788,2]
[365788942,1749915031978,-2600.0,0.000168,6]
[365788943,1749915031987,-860.68140023,0.0001681,2]
[365788944,1749915031997,-374.45743902,0.00016833,2]
[365788945,1749915032010,-486.22396121,0.00016833,2]
[365788946,1749915032019,-587.68028882,0.00016855,2]
[365788947,1749915032031,-273.00111141,0.00016855,2]
[365788949,1749915032041,-227.0,0.00016866,2]
[365788951,1749915032050,-860.68140023,0.00016878,2]
[365788953,1749915032060,-1122.20614951,0.0001689,2]
[365788955,1749915032070,-1122.20614949,0.00016891,2]
[365788957,1749915032079,-1122.20614949,0.00016892,2]
[365788959,1749915032088,-1122.20614949,0.00016893,2]
[365788961,1749915032098,-1081.69349197,0.00016894,2]
[365788964,1749915032109,-40.51265752,0.00016894,2]
[365788967,1749915032118,-1122.20614949,0.00016896,2]
[365788970,1749915032128,-1122.20614949,0.00016897,2]
[365788973,1749915032137,-1122.20614949,0.00016898,2]
[365788975,1749915032147,-343.18530323,0.00016898,2]
[365788977,1749915032156,-158.40630172,0.00016898,2]
[365788979,1749915032166,-154.39661663,0.00016898,2]
[365788981,1749915032175,-413.09590362,0.00016898,2]
[365788983,1749915032184,-1122.20614949,0.00016899,2]
[365788985,1749915032193,-500.0,0.000169,6]
[365788986,1749915032202,-1000.0,0.000169,2]
[365788987,1749915032212,-1000.0,0.000169,2]
[365788988,1749915032221,-860.68140023,0.000169,2]
[365788989,1749915032230,-5256.80687712,0.000169,2]
[365788990,1749915032242,-3893.31631357,0.000169,2]
[365788991,1749915032254,-704.1835659,0.000169,2]
[365788992,1749915032265,-310.31,0.000169,2]
[365788993,1749915032276,-14718.54166556,0.000169,2]
[365788994,1749915032288,-970.99304133,0.000169,2]
[365788996,1749915032300,-1547.62128186,0.000169,2]
[365788999,1749915032312,-1640.10229079,0.000169,2]
[365789001,1749915032328,-4602.16426908,0.000169,2]
[365789003,1749915032340,-418.37319967,0.000169,2]
[365789005,1749915032351,-586.889,0.000169,2]
[365789008,1749915032363,-800.0,0.000169,2]
[365789012,1749915032398,-906.39902766,0.000169,2]
[365789014,1749915032409,-114284.17254427,0.000169,2]
[365789016,1749915032421,-60610.30159955,0.000169,2]
[365789546,1749915037826,-5229.0,0.000169,2]
[365789759,1749915039958,-234.310761,0.00016083,2]
[365789761,1749915039967,-418.23505428,0.000169,2]
[365789763,1749915039979,-2175.173,0.000169,2]
[365789901,1749915041355,-307219.86748474,0.000169,2]
[365789903,1749915041364,-1122.20614949,0.000169,2]
[365789905,1749915041373,-643.08486766,0.000169,2]
[365789907,1749915041383,-153.64068744,0.000169,2]
[365789909,1749915041392,-3431.08784676,0.000169,2]
[365789911,1749915041402,-201.33957346,0.000169,2]
[365789913,1749915041412,-1000.0,0.000169,2]
[365789915,1749915041421,-227.0,0.0001691,2]
[365789917,1749915041430,-227.0,0.00016922,2]
[365789919,1749915041440,-500.0,0.00016973,2]
[365789921,1749915041449,-500.0,0.00016973,2]
[365789923,1749915041459,-500.0,0.00016973,2]
[365789925,1749915041468,-500.0,0.00016973,2]
[365789927,1749915041477,-500.0,0.00016973,2]
[365789929,1749915041487,-500.0,0.00016973,2]
[365789931,1749915041497,-500.0,0.00016973,2]
[365789933,1749915041506,-500.0,0.00016973,2]
[365789935,1749915041516,-151.0,0.0001699,2]
[365789937,1749915041526,-1200.0,0.0001699,2]
[365789939,1749915041536,-272.41329229,0.0001699,2]
[365789941,1749915041546,-1200.0,0.0001699,2]
[365789943,1749915041555,-151.0,0.0001699,2]
[365789945,1749915041565,-1200.0,0.0001699,2]
[365789947,1749915041575,-151.0,0.0001699,2]
[365789949,1749915041584,-1200.0,0.0001699,2]
[365789951,1749915041593,-1957.856,0.0001699,2]
[365789953,1749915041603,-1200.0,0.0001699,2]
[365789955,1749915041612,-1316.16347923,0.0001699,2]
[365789956,1749915041621,-207.4,0.0001699,2]
[365789957,1749915041630,-334.31012847,0.0001699,2]
[365789958,1749915041640,-147924.9053713,0.0001699,2]
[365789959,1749915041649,-54407.1743974,0.0001699,2]
[365789960,1749915041659,-3546.8693574,0.0001699,2]
[365789961,1749915041669,-833.63237626,0.0001699,2]
[365789962,1749915041679,-500.0,0.00016997,2]
[365789963,1749915041689,-473.58708577,0.00016997,2]
[365789964,1749915041698,-500.0,0.00016997,2]
[365789965,1749915041708,-500.0,0.00016997,2]
[365789966,1749915041717,-300.0,0.00016997,2]
[365789967,1749915041727,-918493.27942317,0.00016998,2]
[365790310,1749915045591,-606.76933317,0.00016217,2]
[365790313,1749915045612,-12.23066683,0.00016217,2]
[365790315,1749915045623,-4568.08603838,0.00016998,2]
[365790413,1749915046996,-26813.19859644,0.00016998,2]
[365790414,1749915047022,-431.2,0.00016998,2]
[365790416,1749915047035,-5440.86,0.00016998,2]
[365790419,1749915047051,-5840.34056554,0.00016998,2]
[365791555,1749915067835,9711.17041533,7.945e-05,2]
[365791556,1749915067857,10000.0,7.945e-05,2]
[365791557,1749915067890,9289.17077267,7.945e-05,2]
[365791558,1749915081896,710.82922733,0.00016,2]
[365791559,1749915081918,7548.51669322,0.00016,2]
[365791560,1749915107144,600.0,0.00015068,2]
[365791562,1749915222756,171.8,0.00012802,2]
[365791563,1749915238124,250.0,0.00015988,2]
[365791564,1749915238987,150.0,0.00015988,2]
[365791565,1749915309566,150.0,0.00015833,2]
[365791568,1749915333065,1129.68330678,0.00015807,2]
[365791569,1749915333087,1621.31669322,0.00015807,2]
[365791570,1749915366535,500.0,0.00015068,2]
[365791571,1749915372746,228.0,0.00015217,2]
[365791572,1749915372793,228.0,0.00015669,2]
[365791574,1749915394753,320.34,0.00013699,2]
[365791576,1749915440482,157.71744331,0.00015918,2]
[365791577,1749915450005,728.39,0.00015706,2]
[365791578,1749915508888,280.44,0.00015677,2]
[365791579,1749915556277,283.42,0.00015684,2]
[365791580,1749915610815,533.86609936,0.00015994,2]
[365791582,1749915634044,1440.46,0.00015672,2]
[365791585,1749915732423,223.0,0.00015121,2]
[365791586,1749915732700,223.0,0.00015575,2]
[365791587,1749915743334,3232.04976411,0.00016001,2]
[365791588,1749915743358,1767.95023589,0.00016001,2]
[365791589,1749915747863,666.0,0.00015583,2]
[365791590,1749915761698,5000.0,0.00016001,2]
[365791591,1749915763111,2566.04976411,0.00016,2]
[365791592,1749915763135,702.08767551,0.00016,2]
[365791593,1749915770965,5000.0,0.00016001,2]
[365791594,1749915774354,157.71744331,0.00015914,2]
[365791595,1749915780685,4140.19488118,0.00016001,2]
[365791596,1749915780708,859.80511882,0.00016001,2]
[365791597,1749915791601,5000.0,0.00016001,2]
[365791598,1749915791641,1526.8,0.00013575,2]
[365791599,1749915791731,1526.8,0.00015839,2]
[365791600,1749915802959,1086.59488118,0.00016001,2]
[365791601,1749915802982,3913.40511882,0.00016001,2]
[365791602,1749915815469,5000.0,0.00016001,2]
[365791603,1749915816448,600.0,0.00015068,2]
[365791604,1749915821854,213.0,0.00015121,2]
[365791605,1749915826382,273.59488118,0.00016001,2]
[365791606,1749915826404,4726.40511882,0.00016001,2]
[365791607,1749915826577,629.97,0.00015524,2]
[365791608,1749915837616,4643.62488118,0.00016001,2]
[365791609,1749915837640,356.37511882,0.00016001,2]
[365791610,1749915851529,5000.0,0.00016001,2]
[365791611,1749915852054,201.0,0.00015121,2]
[365791612,1749915860703,168.0,0.00015376,2]
[365791613,1749915865069,168.0,0.00015419,2]
[365791614,1749915867725,168.0,0.00014825,2]
[365791615,1749915871206,168.0,0.00014825,2]
[365791616,1749915883222,958.0,0.00016001,2]
[365791617,1749915905427,500.0,0.00015068,2]
[365791618,1749915941797,200.0,0.00015121,2]
[365791619,1749915944900,2112.62488118,0.00016001,5]
[365791620,1749915967064,5000.0,0.00016,5]
[365791621,1749915971946,402.0,0.00015121,2]
[365791622,1749915979735,2351.58,0.00015471,2]
[365791623,1749915979954,2351.58,0.00015475,2]
[365791624,1749915980145,2351.58,0.00015479,2]
[365791625,1749915980336,2351.58,0.00015484,2]
[365791626,1749915980528,2351.58,0.00015488,2]
[365791627,1749915980728,2351.58,0.00015492,2]
[365791628,1749915980930,2351.58,0.00015496,2]
[365791629,1749915981168,2351.58,0.000155,2]
[365791630,1749915981377,2351.58,0.00015504,2]
[365791631,1749915981672,2351.58,0.00015508,2]
[365791632,1749915981738,200.0,0.00015471,7]
[365791633,1749915981934,2351.58,0.00015512,2]
[365791634,1749915982132,2351.58,0.00015516,2]
[365791635,1749915982386,2351.58,0.0001552,2]
[365791636,1749915982592,2351.58,0.00015524,2]
[365791637,1749915982810,2351.58,0.00015528,2]
[365791638,1749915983044,2351.58,0.00015533,2]
[365791639,1749915983255,2351.58,0.00015537,2]
[365791640,1749915983452,2351.58,0.00015541,2]
[365791641,1749915985500,2351.58,0.00015545,2]
[365791642,1749915985534,2351.58,0.00015549,2]
[365791643,1749916011755,23900.0,0.00015471,2]
[365791644,1749916015439,187.78,0.00015471,2]
[365791645,1749916028435,2887.0,0.00016,5]
[365791651,1749916048932,600.0,0.00015068,2]
[365791652,1749916084528,5100.35,0.00015466,2]
[365791653,1749916095225,221.0,0.00015028,2]
[365791654,1749916095525,221.0,0.00015482,2]
[365791655,1749916095814,221.0,0.00015936,3]
[365791656,1749916098586,172.5164107,0.00015902,2]
[365791657,1749916104664,172.5164107,0.00015959,2]
[365791658,1749916120338,200.0,0.00015457,2]
[365791659,1749916127205,201.0,0.00015028,2]
[365791660,1749916147977,166.27,0.00015441,2]
[365791661,1749916200130,250.0,0.00015426,2]
[365791668,1749916231928,-300.0,0.00016001,2]
[365791670,1749916231938,-300.0,0.00016001,2]
[365791672,1749916231947,-3.03805158,0.00016001,2]
[365791674,1749916231958,-161.40786696,0.00016001,2]
[365791675,1749916231967,-250.0,0.00016001,2]
[365791677,1749916231977,-300.0,0.00016001,2]
[365791679,1749916231986,-600.0,0.00016002,4]
[365791681,1749916231995,-171.8,0.00016002,2]
[365791683,1749916232004,-600.0,0.00016002,4]
[365791685,1749916232014,-200.0,0.00016014,2]
[365791687,1749916232023,-172.5164107,0.00016016,2]
[365791688,1749916232032,-155.63,0.00016032,2]
[365791690,1749916232043,-21.54445588,0.00016035,2]
[365791691,1749916232054,-978.45554412,0.00016035,2]
[365791692,1749916232063,-933.05095964,0.00016056,2]
[365791693,1749916232078,-214.06904036,0.00016056,2]
[365791694,1749916232088,-168.0,0.00016065,2]
[365791695,1749916232097,-151.0,0.00016106,2]
[365791696,1749916232107,-1200.0,0.00016113,2]
[365791697,1749916232116,-300.0,0.00016113,2]
[365791698,1749916232126,-300.0,0.00016113,2]
[365791699,1749916232135,-300.0,0.00016113,2]
[365791700,1749916232145,-600.0,0.00016113,2]
[365791701,1749916232154,-300.0,0.00016114,2]
[365791702,1749916232163,-243.0,0.00016114,2]
[365791703,1749916232172,-300.0,0.00016114,2]
[365791704,1749916232182,-550.0,0.00016115,2]
[365791705,1749916232191,-150.99,0.00016116,2]
[365791706,1749916232200,-5943.04815963,0.00016116,2]
[365791707,1749916232213,-1353.97795263,0.00016116,2]
[365791708,1749916232226,-319.06022853,0.00016116,2]
[365791709,1749916232236,-653.51,0.00016116,2]
[365791728,1749916232604,-956.91278012,0.00016116,2]
[365791729,1749916232618,-406.5834077,0.00016116,2]
[365791730,1749916232634,-366.89747139,0.00016116,2]
[365791731,1749916232644,-9999.99,0.00016116,2]
[365791732,1749916232654,-3683.01,0.00016116,2]
[365791734,1749916232664,-1462.87,0.00016116,2]
[365791736,1749916232674,-150.99,0.00016116,2]
[365791738,1749916232683,-999.99,0.00016116,2]
[365791740,1749916232693,-9999.99,0.00016116,2]
[365791742,1749916232703,-499.99,0.00016116,2]
[365791744,1749916232713,-1137.42,0.00016116,2]
[365791746,1749916232722,-9999.99,0.00016116,2]
[365791748,1749916232731,-408.22,0.00016116,2]
[365791750,1749916232741,-267.00351388,0.00016116,2]
[365791752,1749916232750,-207.4,0.00016133,2]
[365791754,1749916232760,-151.0,0.00016133,2]
[365791756,1749916232770,-500.0,0.00016133,2]
[365791758,1749916232780,-500.0,0.00016133,2]
[365791760,1749916232791,-1000.0,0.00016133,2]
[365791762,1749916232800,-1000.0,0.00016133,2]
[365791764,1749916232810,-1000.0,0.00016133,2]
[365791766,1749916232820,-1000.0,0.00016133,2]
[365791768,1749916232829,-1000.0,0.00016133,2]
[365791770,1749916232839,-1000.0,0.00016133,2]
[365791772,1749916232848,-668.65185757,0.00016133,2]
[365791774,1749916232857,-151.0,0.00016133,2]
[365791776,1749916232867,-1957.856,0.00016133,2]
[365791778,1749916232876,-1000.0,0.00016133,2]
[365791780,1749916232886,-500.0,0.00016133,2]
[365791782,1749916232895,-1000.0,0.00016133,2]
[365791784,1749916232904,-1000.0,0.00016133,2]
[365791786,1749916232913,-500.0,0.00016133,2]
[365791788,1749916232922,-640.79227254,0.00016133,2]
[365791790,1749916232931,-500.0,0.00016133,2]
[365791792,1749916232941,-500.0,0.00016133,2]
[365791794,1749916232950,-500.0,0.00016133,2]
[365791796,1749916232960,-500.0,0.00016133,2]
[365791798,1749916232969,-500.0,0.00016133,2]
[365791800,1749916232978,-500.0,0.00016133,2]
[365791802,1749916232987,-500.0,0.00016133,2]
[365791805,1749916232996,-500.0,0.00016133,2]
[365791808,1749916233005,-500.0,0.00016133,2]
[365791811,1749916233015,-1200.0,0.00016133,2]
[365791814,1749916233024,-848.55434929,0.00016133,2]
[365791817,1749916233034,-500.0,0.00016133,2]
[365791820,1749916233044,-500.0,0.00016133,2]
[365791823,1749916233061,-500.0,0.00016133,2]